[Event "*** MasterClass Titled Tuesday Blitz"]
[Site "Chess.com"]
[Date "2017.07.04"]
[Round "2"]
[White "dretch"]
[Black "SovietCitizen"]
[Result "1-0"]
[WhiteElo "2521"]
[BlackElo "2252"]
[TimeControl "180+2"]
[EndTime "13:17:03 PDT"]
[Termination "dretch won by resignation"]

1. d4 {[%clk 0:03:01.9]} 1... Na6 {[%clk 0:02:39.6]} 2. e4 {[%clk 0:03:00.6]}
2... b6 {[%clk 0:02:38.1]} 3. Nf3 {[%clk 0:02:55.9]} 3... Bb7 {[%clk 0:02:38.5]}
4. c3 {[%clk 0:02:56.1]} 4... e6 {[%clk 0:02:38.8]} 5. Bd3 {[%clk 0:02:56.9]}
5... c5 {[%clk 0:02:38.6]} 6. O-O {[%clk 0:02:56.5]} 6... cxd4 {[%clk
0:02:38.8]} 7. cxd4 {[%clk 0:02:55.4]} 7... d5 {[%clk 0:02:40.7]} 8. Bxa6 {[%clk
0:02:52.6]} 8... Bxa6 {[%clk 0:02:38.6]} 9. Qa4+ {[%clk 0:02:53.5]} 9... Qd7
{[%clk 0:02:31.3]} 10. Qxa6 {[%clk 0:02:54.4]} 10... Bd6 {[%clk 0:02:30.8]} 11.
Nc3 {[%clk 0:02:48.4]} 11... dxe4 {[%clk 0:02:30.3]} 12. Nxe4 {[%clk 0:02:48]}
12... Ne7 {[%clk 0:02:28.7]} 13. Qb5 {[%clk 0:02:48.1]} 13... Bc7 {[%clk
0:02:28.5]} 14. Qxd7+ {[%clk 0:02:48.5]} 14... Kxd7 {[%clk 0:02:29.5]} 15. Ne5+
{[%clk 0:02:50.4]} 15... Ke8 {[%clk 0:02:29.1]} 16. Ng5 {[%clk 0:02:49.7]} 16...
h6 {[%clk 0:02:21.2]} 17. Ngxf7 {[%clk 0:02:47.9]} 1-0

[Event "*** MasterClass Titled Tuesday Blitz"]
[Site "Chess.com"]
[Date "2017.07.04"]
[Round "2"]
[White "silverback96"]
[Black "fidetrainerNET"]
[Result "1-0"]
[WhiteElo "2114"]
[BlackElo "2108"]
[TimeControl "180+2"]
[EndTime "13:17:17 PDT"]
[Termination "silverback96 won by resignation"]

1. d4 {[%clk 0:03:01.9]} 1... Nf6 {[%clk 0:02:55.8]} 2. c4 {[%clk 0:03:03.4]}
2... e6 {[%clk 0:02:56.9]} 3. g3 {[%clk 0:03:03.9]} 3... Bb4+ {[%clk 0:02:58.3]}
4. Bd2 {[%clk 0:03:04.7]} 4... Qe7 {[%clk 0:03:00.2]} 5. Nf3 {[%clk 0:03:04.3]}
5... d5 {[%clk 0:03:00.1]} 6. Bg2 {[%clk 0:03:05.2]} 6... dxc4 {[%clk
0:02:59.6]} 7. O-O {[%clk 0:03:05.7]} 7... O-O {[%clk 0:03:00.4]} 8. Ne5 {[%clk
0:03:06.3]} 8... Bxd2 {[%clk 0:03:00.6]} 9. Nxd2 {[%clk 0:03:06.6]} 9... Rd8
{[%clk 0:02:58.5]} 10. e3 {[%clk 0:03:07.4]} 10... c5 {[%clk 0:02:59.2]} 11.
Ndxc4 {[%clk 0:03:08.7]} 11... cxd4 {[%clk 0:02:59.8]} 12. exd4 {[%clk
0:03:10.6]} 12... Nfd7 {[%clk 0:02:59.2]} 13. Qg4 {[%clk 0:03:09.8]} 13... Nxe5
{[%clk 0:02:58.1]} 14. dxe5 {[%clk 0:03:11.7]} 14... Nc6 {[%clk 0:02:57.9]} 15.
Rfe1 {[%clk 0:03:05.9]} 15... Qc5 {[%clk 0:02:57.5]} 16. Rac1 {[%clk 0:03:00.4]}
16... Qd4 {[%clk 0:02:49.1]} 17. Qg5 {[%clk 0:02:52.7]} 17... h6 {[%clk
0:02:48.1]} 18. Qh5 {[%clk 0:02:50.3]} 18... Kf8 {[%clk 0:02:24.6]} 19. Bxc6
{[%clk 0:02:47.4]} 19... bxc6 {[%clk 0:02:24.5]} 20. Red1 {[%clk 0:02:48.1]}
20... Qxc4 {[%clk 0:02:17.2]} 21. Rxd8+ {[%clk 0:02:47.2]} 1-0

[Event "*** MasterClass Titled Tuesday Blitz"]
[Site "Chess.com"]
[Date "2017.07.04"]
[Round "2"]
[White "aquiles88"]
[Black "Kawhi_Leonard2"]
[Result "1/2-1/2"]
[WhiteElo "2038"]
[BlackElo "2134"]
[TimeControl "180+2"]
[EndTime "13:18:28 PDT"]
[Termination "Game drawn by agreement"]

1. g3 {[%clk 0:02:59.5]} 1... Nf6 {[%clk 0:02:58.9]} 2. Bg2 {[%clk 0:03:01.4]}
2... e6 {[%clk 0:03:00.2]} 3. Nf3 {[%clk 0:03:02.1]} 3... d5 {[%clk 0:03:01.8]}
4. O-O {[%clk 0:03:03.6]} 4... Be7 {[%clk 0:03:03.4]} 5. d3 {[%clk 0:03:05]}
5... O-O {[%clk 0:03:04.9]} 6. Nbd2 {[%clk 0:03:06.5]} 6... c5 {[%clk
0:03:06.2]} 7. e4 {[%clk 0:03:07.8]} 7... Nc6 {[%clk 0:03:07.6]} 8. Re1 {[%clk
0:03:08.7]} 8... b5 {[%clk 0:03:08.4]} 9. e5 {[%clk 0:03:09.1]} 9... Nd7 {[%clk
0:03:09.3]} 10. Nf1 {[%clk 0:03:10]} 10... Qc7 {[%clk 0:03:09.8]} 11. Bf4 {[%clk
0:03:10.1]} 11... a5 {[%clk 0:03:08.7]} 12. a4 {[%clk 0:03:10.7]} 12... b4
{[%clk 0:03:08.7]} 13. h4 {[%clk 0:03:11.1]} 13... Re8 {[%clk 0:03:09.5]} 14. h5
{[%clk 0:03:10.6]} 14... Ba6 {[%clk 0:03:08.1]} 15. N1h2 {[%clk 0:03:10]} 15...
Qb6 {[%clk 0:02:51.6]} 16. Ng4 {[%clk 0:03:07.1]} 16... c4 {[%clk 0:02:51.8]}
17. d4 {[%clk 0:03:05.7]} 17... c3 {[%clk 0:02:52.7]} 18. b3 {[%clk 0:03:05.3]}
18... Rac8 {[%clk 0:02:38.8]} 19. h6 {[%clk 0:03:04.8]} 19... g6 {[%clk
0:02:38.8]} 20. Bf1 {[%clk 0:03:04.5]} 20... Bxf1 {[%clk 0:02:34.2]} 21. Kxf1
{[%clk 0:03:04.2]} 21... Qa6+ {[%clk 0:02:21.8]} 22. Kg2 {[%clk 0:03:03.1]}
22... Qb6 {[%clk 0:02:22.6]} 23. Qd3 {[%clk 0:02:57.9]} 23... Rb8 {[%clk
0:02:20.5]} 24. Rad1 {[%clk 0:02:56.2]} 24... Rec8 {[%clk 0:02:20.3]} 25. Qe3
{[%clk 0:02:56.3]} 25... Qa7 {[%clk 0:02:18.5]} 26. Bg5 {[%clk 0:02:56.4]} 26...
Bf8 {[%clk 0:02:18.7]} 27. Nf6+ {[%clk 0:02:44]} 27... Nxf6 {[%clk 0:02:18.9]}
28. Bxf6 {[%clk 0:02:44.3]} 28... Ne7 {[%clk 0:02:09.6]} 29. g4 {[%clk
0:02:37.3]} 29... Nc6 {[%clk 0:02:09.4]} 1/2-1/2

[Event "*** MasterClass Titled Tuesday Blitz"]
[Site "Chess.com"]
[Date "2017.07.04"]
[Round "2"]
[White "Rating-Schmating"]
[Black "Fy_Rakotomaharo"]
[Result "0-1"]
[WhiteElo "2242"]
[BlackElo "2351"]
[TimeControl "180+2"]
[EndTime "13:19:15 PDT"]
[Termination "Fy_Rakotomaharo won by checkmate"]

1. e4 {[%clk 0:02:58.9]} 1... c5 {[%clk 0:03:00]} 2. Nf3 {[%clk 0:02:53.6]} 2...
Nc6 {[%clk 0:02:59.5]} 3. d4 {[%clk 0:02:53]} 3... cxd4 {[%clk 0:03:01.4]} 4.
Nxd4 {[%clk 0:02:53.8]} 4... e5 {[%clk 0:03:02.7]} 5. Nb5 {[%clk 0:02:54.4]}
5... d6 {[%clk 0:03:04.2]} 6. N1c3 {[%clk 0:02:53.7]} 6... a6 {[%clk 0:03:05.3]}
7. Na3 {[%clk 0:02:55.1]} 7... Be7 {[%clk 0:03:07.1]} 8. Nd5 {[%clk 0:02:55.3]}
8... Nf6 {[%clk 0:03:07.6]} 9. Nxf6+ {[%clk 0:02:55]} 9... Bxf6 {[%clk
0:03:08.3]} 10. c4 {[%clk 0:02:56.2]} 10... O-O {[%clk 0:03:08.1]} 11. Nc2
{[%clk 0:02:57.7]} 11... Bg5 {[%clk 0:03:05.3]} 12. Bxg5 {[%clk 0:02:57.4]}
12... Qxg5 {[%clk 0:03:05.8]} 13. Qd2 {[%clk 0:02:55.6]} 13... Qg6 {[%clk
0:03:04.1]} 14. f3 {[%clk 0:02:55.6]} 14... f5 {[%clk 0:03:02.3]} 15. O-O-O
{[%clk 0:02:55.7]} 15... Be6 {[%clk 0:02:49.7]} 16. Bd3 {[%clk 0:02:48.8]} 16...
f4 {[%clk 0:02:48.4]} 17. Kb1 {[%clk 0:02:46.6]} 17... b5 {[%clk 0:02:48.4]} 18.
Qe2 {[%clk 0:02:43]} 18... Na5 {[%clk 0:02:39.3]} 19. cxb5 {[%clk 0:02:39.9]}
19... axb5 {[%clk 0:02:39.8]} 20. Nb4 {[%clk 0:02:39.7]} 20... Nc4 {[%clk
0:02:35.7]} 21. Bxc4 {[%clk 0:02:38.4]} 21... Bxc4 {[%clk 0:02:35.8]} 22. Qd2
{[%clk 0:02:40]} 22... d5 {[%clk 0:02:21.2]} 23. b3 {[%clk 0:02:36.8]} 23...
dxe4 {[%clk 0:02:22.2]} 24. bxc4 {[%clk 0:02:36.7]} 24... exf3+ {[%clk
0:02:23.1]} 25. Qc2 {[%clk 0:02:36.5]} 25... fxg2 {[%clk 0:02:22.7]} 26. Qxg6
{[%clk 0:02:34.8]} 26... hxg6 {[%clk 0:02:23]} 27. Rhe1 {[%clk 0:02:27.4]} 27...
f3 {[%clk 0:02:23.1]} 28. Nd3 {[%clk 0:02:25.5]} 28... f2 {[%clk 0:02:23.3]} 29.
Nxf2 {[%clk 0:02:22.1]} 29... Rxf2 {[%clk 0:02:25.2]} 30. cxb5 {[%clk
0:02:08.3]} 30... Raxa2 {[%clk 0:02:22.6]} 31. b6 {[%clk 0:02:05.2]} 31... Rab2+
{[%clk 0:02:22.6]} 32. Ka1 {[%clk 0:02:05.4]} 32... Rxb6 {[%clk 0:02:22.3]} 33.
h4 {[%clk 0:02:04.8]} 33... Rf4 {[%clk 0:02:17.7]} 34. Rg1 {[%clk 0:01:56.9]}
34... Ra4# {[%clk 0:02:17.2]} 0-1

[Event "*** MasterClass Titled Tuesday Blitz"]
[Site "Chess.com"]
[Date "2017.07.04"]
[Round "2"]
[White "ruvat"]
[Black "SipkeErnst"]
[Result "0-1"]
[WhiteElo "2264"]
[BlackElo "2395"]
[TimeControl "180+2"]
[EndTime "13:19:17 PDT"]
[Termination "SipkeErnst won by resignation"]

1. d4 {[%clk 0:02:51]} 1... Nf6 {[%clk 0:02:59.3]} 2. c4 {[%clk 0:02:52]} 2...
e6 {[%clk 0:03:00.1]} 3. g3 {[%clk 0:02:52.7]} 3... c5 {[%clk 0:02:58.8]} 4. d5
{[%clk 0:02:53.1]} 4... exd5 {[%clk 0:02:59.6]} 5. cxd5 {[%clk 0:02:55]} 5... d6
{[%clk 0:03:00.4]} 6. Nc3 {[%clk 0:02:56.6]} 6... g6 {[%clk 0:03:01.6]} 7. Bg2
{[%clk 0:02:57.7]} 7... Bg7 {[%clk 0:03:02.7]} 8. Nf3 {[%clk 0:02:59.4]} 8...
O-O {[%clk 0:03:03.5]} 9. O-O {[%clk 0:03:01]} 9... Re8 {[%clk 0:03:03.7]} 10.
Bf4 {[%clk 0:03:01]} 10... Bf5 {[%clk 0:02:53.6]} 11. Nd2 {[%clk 0:02:50.9]}
11... Nh5 {[%clk 0:02:50.8]} 12. Be3 {[%clk 0:02:50.4]} 12... Nd7 {[%clk
0:02:48.7]} 13. a4 {[%clk 0:02:39.8]} 13... Rxe3 {[%clk 0:02:48.1]} 14. fxe3
{[%clk 0:02:41.7]} 14... Ne5 {[%clk 0:02:46.1]} 15. Nde4 {[%clk 0:02:36.8]}
15... Qe7 {[%clk 0:02:44.4]} 16. a5 {[%clk 0:02:26.3]} 16... Bh6 {[%clk
0:02:39.2]} 17. Rf4 {[%clk 0:02:18.7]} 17... Bxe4 {[%clk 0:02:33.7]} 18. Nxe4
{[%clk 0:02:12.8]} 18... f5 {[%clk 0:02:33.1]} 19. Nc3 {[%clk 0:02:08.8]} 19...
Ng4 {[%clk 0:02:29.4]} 20. Rxg4 {[%clk 0:01:47.4]} 20... Bxe3+ {[%clk
0:02:27.6]} 21. Kh1 {[%clk 0:01:48.6]} 21... fxg4 {[%clk 0:02:28.3]} 22. Qd3
{[%clk 0:01:31.5]} 22... Nxg3+ {[%clk 0:02:27.2]} 23. hxg3 {[%clk 0:01:25.9]}
23... Qe5 {[%clk 0:02:28.1]} 0-1

[Event "*** MasterClass Titled Tuesday Blitz"]
[Site "Chess.com"]
[Date "2017.07.04"]
[Round "2"]
[White "DanielNaroditsky"]
[Black "Cryptochess"]
[Result "1-0"]
[WhiteElo "2731"]
[BlackElo "2487"]
[TimeControl "180+2"]
[EndTime "13:20:13 PDT"]
[Termination "DanielNaroditsky won by resignation"]

1. d4 {[%clk 0:03:00]} 1... Nf6 {[%clk 0:03:00.7]} 2. Nc3 {[%clk 0:03:00.1]}
2... d5 {[%clk 0:03:00.6]} 3. Bf4 {[%clk 0:03:00.9]} 3... e6 {[%clk 0:02:59.5]}
4. Nb5 {[%clk 0:03:01.8]} 4... Na6 {[%clk 0:02:59.1]} 5. e3 {[%clk 0:03:03]}
5... c6 {[%clk 0:02:53.9]} 6. Nc3 {[%clk 0:03:04.5]} 6... Nc7 {[%clk 0:02:53]}
7. Bd3 {[%clk 0:03:03.6]} 7... Bd6 {[%clk 0:02:53.7]} 8. Nf3 {[%clk 0:03:04.2]}
8... O-O {[%clk 0:02:53.1]} 9. O-O {[%clk 0:03:04]} 9... b6 {[%clk 0:02:47]} 10.
Ne5 {[%clk 0:03:03.8]} 10... Bb7 {[%clk 0:02:47.2]} 11. Qf3 {[%clk 0:03:02.2]}
11... c5 {[%clk 0:01:53.6]} 12. Bg5 {[%clk 0:03:02]} 12... Be7 {[%clk
0:01:45.5]} 13. Rad1 {[%clk 0:03:01.3]} 13... Nce8 {[%clk 0:01:39.6]} 14. Qh3
{[%clk 0:02:57.5]} 14... h6 {[%clk 0:01:38.5]} 15. Bf4 {[%clk 0:02:58.5]} 15...
Nd6 {[%clk 0:01:36.8]} 16. Bxh6 {[%clk 0:02:44.5]} 16... gxh6 {[%clk 0:01:36.8]}
17. Qxh6 {[%clk 0:02:45.3]} 17... Nfe4 {[%clk 0:01:29.3]} 18. dxc5 {[%clk
0:02:37]} 18... Nf5 {[%clk 0:01:11.8]} 19. Qh3 {[%clk 0:02:29.2]} 19... Nxc3
{[%clk 0:01:02.9]} 20. bxc3 {[%clk 0:02:24.1]} 20... bxc5 {[%clk 0:00:54.2]} 21.
e4 {[%clk 0:02:18.1]} 21... Qc7 {[%clk 0:00:38.3]} 22. exf5 {[%clk 0:02:18.4]}
22... Bf6 {[%clk 0:00:16.5]} 23. Ng4 {[%clk 0:02:18.7]} 1-0

[Event "*** MasterClass Titled Tuesday Blitz"]
[Site "Chess.com"]
[Date "2017.07.04"]
[Round "2"]
[White "JeffReinberg"]
[Black "evgenysharapov"]
[Result "1-0"]
[WhiteElo "2333"]
[BlackElo "2227"]
[TimeControl "180+2"]
[EndTime "13:20:26 PDT"]
[Termination "JeffReinberg won by resignation"]

1. e4 {[%clk 0:03:01.9]} 1... c5 {[%clk 0:02:59.4]} 2. Nc3 {[%clk 0:03:02.3]}
2... Nc6 {[%clk 0:02:59]} 3. f4 {[%clk 0:03:03.2]} 3... g6 {[%clk 0:02:58.2]} 4.
Nf3 {[%clk 0:03:04.1]} 4... Bg7 {[%clk 0:02:58.2]} 5. Bc4 {[%clk 0:03:04.7]}
5... e6 {[%clk 0:02:58]} 6. f5 {[%clk 0:03:05.8]} 6... Nge7 {[%clk 0:02:57.8]}
7. fxe6 {[%clk 0:03:06.3]} 7... dxe6 {[%clk 0:02:57.5]} 8. d3 {[%clk 0:03:07.2]}
8... O-O {[%clk 0:02:56.5]} 9. O-O {[%clk 0:03:07.2]} 9... Nd4 {[%clk
0:02:56.2]} 10. Bb3 {[%clk 0:03:06.5]} 10... Nec6 {[%clk 0:02:55.5]} 11. Nxd4
{[%clk 0:03:04.8]} 11... Nxd4 {[%clk 0:02:54.3]} 12. Ne2 {[%clk 0:03:03]} 12...
Nxe2+ {[%clk 0:02:42.9]} 13. Qxe2 {[%clk 0:03:02.9]} 13... Bd7 {[%clk 0:02:40]}
14. a4 {[%clk 0:02:59]} 14... Qe7 {[%clk 0:02:35.7]} 15. Qf2 {[%clk 0:02:53.9]}
15... Bc6 {[%clk 0:02:31]} 16. Be3 {[%clk 0:02:52.7]} 16... b6 {[%clk
0:02:30.5]} 17. c3 {[%clk 0:02:51.4]} 17... Rad8 {[%clk 0:02:28.3]} 18. Bc2
{[%clk 0:02:51.8]} 18... f5 {[%clk 0:02:23.2]} 19. Qg3 {[%clk 0:02:33.7]} 19...
fxe4 {[%clk 0:02:06.2]} 20. Bg5 {[%clk 0:02:30.7]} 20... Bf6 {[%clk 0:02:01.8]}
21. Rxf6 {[%clk 0:02:12.9]} 21... Rxf6 {[%clk 0:02:01]} 22. dxe4 {[%clk
0:02:11.4]} 22... Qf8 {[%clk 0:01:33.9]} 23. Qh4 {[%clk 0:01:37.5]} 1-0

[Event "*** MasterClass Titled Tuesday Blitz"]
[Site "Chess.com"]
[Date "2017.07.04"]
[Round "2"]
[White "IMJonathanCarlstedt"]
[Black "Hrant_ChessMood"]
[Result "0-1"]
[WhiteElo "2458"]
[BlackElo "2761"]
[TimeControl "180+2"]
[EndTime "13:20:29 PDT"]
[Termination "Hrant_ChessMood won by resignation"]

1. d4 {[%clk 0:02:53.2]} 1... Nf6 {[%clk 0:03:00.4]} 2. Bf4 {[%clk 0:02:51.8]}
2... g6 {[%clk 0:02:59.1]} 3. Nc3 {[%clk 0:02:49.8]} 3... Bg7 {[%clk 0:02:59.7]}
4. e4 {[%clk 0:02:40.7]} 4... d6 {[%clk 0:03:00.5]} 5. Qd2 {[%clk 0:02:41.4]}
5... Nc6 {[%clk 0:03:01.1]} 6. O-O-O {[%clk 0:02:40.8]} 6... O-O {[%clk
0:02:55.2]} 7. Bh6 {[%clk 0:02:41]} 7... e5 {[%clk 0:02:52.8]} 8. Bxg7 {[%clk
0:02:41.3]} 8... Kxg7 {[%clk 0:02:54.6]} 9. d5 {[%clk 0:02:42.3]} 9... Ne7
{[%clk 0:02:52]} 10. h4 {[%clk 0:02:42.6]} 10... h6 {[%clk 0:02:47.5]} 11. g3
{[%clk 0:02:39]} 11... Bd7 {[%clk 0:02:35.4]} 12. Bh3 {[%clk 0:02:37.6]} 12...
Rh8 {[%clk 0:02:33.5]} 13. f4 {[%clk 0:02:37.4]} 13... Bxh3 {[%clk 0:02:23.4]}
14. Rxh3 {[%clk 0:02:36.7]} 14... Ng4 {[%clk 0:02:21.6]} 15. Qe2 {[%clk
0:02:34.8]} 15... h5 {[%clk 0:02:15.1]} 16. Nf3 {[%clk 0:02:34.5]} 16... f6
{[%clk 0:02:11.4]} 17. fxe5 {[%clk 0:02:29]} 17... dxe5 {[%clk 0:02:04]} 18.
Rhh1 {[%clk 0:02:29.3]} 18... Nc8 {[%clk 0:02:01.3]} 19. Rhf1 {[%clk 0:02:26.5]}
19... Nd6 {[%clk 0:01:59.7]} 20. Nh2 {[%clk 0:02:26]} 20... Nxh2 {[%clk
0:01:55.9]} 21. Qxh2 {[%clk 0:02:27.9]} 21... Qd7 {[%clk 0:01:57.1]} 22. Rf3
{[%clk 0:02:17.4]} 22... Raf8 {[%clk 0:01:56]} 23. Rdf1 {[%clk 0:02:17.3]} 23...
b5 {[%clk 0:01:55.2]} 24. Qe2 {[%clk 0:02:13.1]} 24... b4 {[%clk 0:01:51.2]} 25.
Nd1 {[%clk 0:02:13.8]} 25... Qb5 {[%clk 0:01:42]} 26. Qxb5 {[%clk 0:01:51.8]}
26... Nxb5 {[%clk 0:01:42.1]} 27. Kd2 {[%clk 0:01:53.1]} 27... Nd6 {[%clk
0:01:40.6]} 28. Kd3 {[%clk 0:01:53.7]} 28... f5 {[%clk 0:01:36.5]} 29. Nf2
{[%clk 0:01:43.1]} 29... c6 {[%clk 0:01:35]} 30. dxc6 {[%clk 0:01:42.1]} 30...
Rc8 {[%clk 0:01:35.4]} 31. Re3 {[%clk 0:01:36]} 31... Rhd8 {[%clk 0:01:34.4]}
32. Ke2 {[%clk 0:01:27.8]} 32... Rxc6 {[%clk 0:01:34.2]} 33. exf5 {[%clk
0:01:23.3]} 33... Nxf5 {[%clk 0:01:31.7]} 34. Rxe5 {[%clk 0:01:23.8]} 34...
Nxg3+ {[%clk 0:01:31.6]} 0-1

[Event "*** MasterClass Titled Tuesday Blitz"]
[Site "Chess.com"]
[Date "2017.07.04"]
[Round "2"]
[White "vpantev"]
[Black "Spartakus1975"]
[Result "1-0"]
[WhiteElo "2433"]
[BlackElo "2551"]
[TimeControl "180+2"]
[EndTime "13:20:29 PDT"]
[Termination "vpantev won by resignation"]

1. d4 {[%clk 0:02:58.4]} 1... d5 {[%clk 0:02:59.4]} 2. Nf3 {[%clk 0:02:58.1]}
2... Nf6 {[%clk 0:02:53.3]} 3. c4 {[%clk 0:02:58.3]} 3... c6 {[%clk 0:02:52.5]}
4. Qb3 {[%clk 0:02:58.3]} 4... g6 {[%clk 0:02:47.8]} 5. Bf4 {[%clk 0:02:57.8]}
5... Bg7 {[%clk 0:02:41]} 6. e3 {[%clk 0:02:58.3]} 6... O-O {[%clk 0:02:38.2]}
7. Nc3 {[%clk 0:02:58.5]} 7... e6 {[%clk 0:02:17.5]} 8. h3 {[%clk 0:02:58.2]}
8... Nbd7 {[%clk 0:02:12]} 9. Be2 {[%clk 0:02:54.1]} 9... b6 {[%clk 0:02:11.6]}
10. cxd5 {[%clk 0:02:51.9]} 10... Nxd5 {[%clk 0:02:02.3]} 11. Nxd5 {[%clk
0:02:50.6]} 11... exd5 {[%clk 0:02:02.8]} 12. O-O {[%clk 0:02:46]} 12... Bb7
{[%clk 0:02:02.9]} 13. Rac1 {[%clk 0:02:46.2]} 13... c5 {[%clk 0:01:48.7]} 14.
dxc5 {[%clk 0:02:46.1]} 14... Nxc5 {[%clk 0:01:47.5]} 15. Rxc5 {[%clk 0:02:45]}
15... bxc5 {[%clk 0:01:46.2]} 16. Qxb7 {[%clk 0:02:45]} 16... d4 {[%clk
0:01:17.8]} 17. Rd1 {[%clk 0:02:39.8]} 17... Qa5 {[%clk 0:01:13.7]} 18. Bc4
{[%clk 0:02:35.8]} 18... dxe3 {[%clk 0:01:06.1]} 19. fxe3 {[%clk 0:02:28.4]}
19... Qb6 {[%clk 0:00:53.4]} 20. Rd7 {[%clk 0:02:19.9]} 20... Qxb7 {[%clk
0:00:44.6]} 21. Rxb7 {[%clk 0:02:19.6]} 21... Rad8 {[%clk 0:00:32.8]} 22. b3
{[%clk 0:02:13.3]} 22... h6 {[%clk 0:00:29.5]} 23. Rxa7 {[%clk 0:02:08.8]} 23...
g5 {[%clk 0:00:29.8]} 24. Be5 {[%clk 0:02:08.8]} 24... Bxe5 {[%clk 0:00:25.8]}
25. Nxe5 {[%clk 0:02:08.8]} 25... Rd1+ {[%clk 0:00:20.4]} 26. Kh2 {[%clk
0:02:08.9]} 26... Rfd8 {[%clk 0:00:18.3]} 27. Rxf7 {[%clk 0:02:07.3]} 1-0

[Event "*** MasterClass Titled Tuesday Blitz"]
[Site "Chess.com"]
[Date "2017.07.04"]
[Round "2"]
[White "Saitama_Hero"]
[Black "platy3"]
[Result "0-1"]
[WhiteElo "2253"]
[BlackElo "2630"]
[TimeControl "180+2"]
[EndTime "13:20:58 PDT"]
[Termination "platy3 won by resignation"]

1. d4 {[%clk 0:03:01.9]} 1... Nf6 {[%clk 0:02:53.5]} 2. c4 {[%clk 0:03:02.2]}
2... g6 {[%clk 0:02:43.1]} 3. Nc3 {[%clk 0:03:03]} 3... Bg7 {[%clk 0:02:38.6]}
4. e4 {[%clk 0:03:02.9]} 4... d6 {[%clk 0:02:39.9]} 5. Be2 {[%clk 0:03:03.7]}
5... O-O {[%clk 0:02:40.3]} 6. Nf3 {[%clk 0:03:05.3]} 6... e5 {[%clk 0:02:41.2]}
7. O-O {[%clk 0:03:06.7]} 7... Nc6 {[%clk 0:02:42.4]} 8. d5 {[%clk 0:03:07.7]}
8... Ne7 {[%clk 0:02:43.9]} 9. b4 {[%clk 0:03:08.5]} 9... a5 {[%clk 0:02:43.5]}
10. bxa5 {[%clk 0:03:08.4]} 10... c5 {[%clk 0:02:44.1]} 11. a4 {[%clk
0:03:08.4]} 11... Rxa5 {[%clk 0:02:45.1]} 12. Nd2 {[%clk 0:03:02.6]} 12... Ne8
{[%clk 0:02:45.6]} 13. Nb3 {[%clk 0:03:01.8]} 13... Ra6 {[%clk 0:02:46.4]} 14.
a5 {[%clk 0:03:01.5]} 14... f5 {[%clk 0:02:46.6]} 15. f3 {[%clk 0:02:56.3]}
15... f4 {[%clk 0:02:46.8]} 16. g4 {[%clk 0:02:50.3]} 16... h5 {[%clk
0:02:42.2]} 17. h3 {[%clk 0:02:49.7]} 17... hxg4 {[%clk 0:02:41.7]} 18. hxg4
{[%clk 0:02:51.6]} 18... g5 {[%clk 0:02:27.3]} 19. Bd2 {[%clk 0:02:51.6]} 19...
Ng6 {[%clk 0:02:28.2]} 20. Kf2 {[%clk 0:02:38]} 20... Nh4 {[%clk 0:02:28.2]} 21.
Nb5 {[%clk 0:02:34.3]} 21... Bxg4 {[%clk 0:01:52]} 22. fxg4 {[%clk 0:02:34.3]}
22... f3 {[%clk 0:01:53.2]} 23. Bd3 {[%clk 0:02:33.9]} 23... Nf6 {[%clk
0:01:50.8]} 24. Rg1 {[%clk 0:02:33.1]} 24... Qd7 {[%clk 0:01:50.2]} 25. Bxg5
{[%clk 0:02:28.3]} 25... Nxg4+ {[%clk 0:01:48]} 26. Kf1 {[%clk 0:02:28.1]} 26...
Rf4 {[%clk 0:01:24.6]} 27. Bxf4 {[%clk 0:02:02]} 27... exf4 {[%clk 0:01:26.5]}
28. Qd2 {[%clk 0:01:48.9]} 28... Ne3+ {[%clk 0:01:25.6]} 29. Kf2 {[%clk
0:01:42.3]} 29... Qh3 {[%clk 0:01:26.5]} 30. Rxg7+ {[%clk 0:01:39.7]} 30... Kxg7
{[%clk 0:01:24]} 31. Rg1+ {[%clk 0:01:41.1]} 31... Nhg2 {[%clk 0:01:16.4]} 32.
Qc3+ {[%clk 0:01:15.4]} 32... Kf7 {[%clk 0:01:12.3]} 0-1

[Event "*** MasterClass Titled Tuesday Blitz"]
[Site "Chess.com"]
[Date "2017.07.04"]
[Round "2"]
[White "jk13"]
[Black "Rokis13"]
[Result "1-0"]
[WhiteElo "2409"]
[BlackElo "2351"]
[TimeControl "180+2"]
[EndTime "13:21:18 PDT"]
[Termination "jk13 won on time"]

1. e4 {[%clk 0:03:01.9]} 1... e5 {[%clk 0:02:57.2]} 2. Nf3 {[%clk 0:03:00.9]}
2... Nc6 {[%clk 0:02:58.1]} 3. Bc4 {[%clk 0:03:02.3]} 3... Bc5 {[%clk 0:02:58]}
4. c3 {[%clk 0:03:02.7]} 4... Nf6 {[%clk 0:02:57.9]} 5. d3 {[%clk 0:03:04.2]}
5... d6 {[%clk 0:02:58.8]} 6. Bb3 {[%clk 0:03:04.9]} 6... a6 {[%clk 0:02:59.4]}
7. h3 {[%clk 0:03:05.6]} 7... h6 {[%clk 0:02:57.1]} 8. Nbd2 {[%clk 0:03:07]}
8... O-O {[%clk 0:02:52]} 9. O-O {[%clk 0:03:07.1]} 9... Be6 {[%clk 0:02:52.1]}
10. Bc2 {[%clk 0:03:07.8]} 10... Ba7 {[%clk 0:02:49.1]} 11. Re1 {[%clk
0:03:08.7]} 11... Ne7 {[%clk 0:02:48.8]} 12. Nf1 {[%clk 0:03:09.8]} 12... Ng6
{[%clk 0:02:49.8]} 13. Ng3 {[%clk 0:03:11.4]} 13... Re8 {[%clk 0:02:49.4]} 14.
d4 {[%clk 0:03:11.1]} 14... c5 {[%clk 0:02:37.2]} 15. Be3 {[%clk 0:03:06.9]}
15... cxd4 {[%clk 0:02:36.1]} 16. cxd4 {[%clk 0:03:07.7]} 16... Bc4 {[%clk
0:01:57.7]} 17. Qd2 {[%clk 0:03:01.3]} 17... Bb5 {[%clk 0:01:50.9]} 18. Bxh6
{[%clk 0:02:42.3]} 18... gxh6 {[%clk 0:01:50.5]} 19. Qxh6 {[%clk 0:02:44.2]}
19... Qe7 {[%clk 0:01:35.8]} 20. Bb3 {[%clk 0:02:30]} 20... d5 {[%clk
0:01:31.8]} 21. dxe5 {[%clk 0:01:51.6]} 21... Nh7 {[%clk 0:01:16.2]} 22. Bxd5
{[%clk 0:01:40.9]} 22... Nxe5 {[%clk 0:01:05.8]} 23. Nxe5 {[%clk 0:01:10.4]} 1-0